[Event "3rd Rio Open 2024"]
[Site "Rio de Janeiro"]
[Date "2024.04.25"]
[Round "5.3"]
[White "Librelato, Kathie Goulart"]
[Black "Ribeiro, Matheus Mendes Domin"]
[Result "0-1"]
[ECO "E04"]
[WhiteElo "2165"]
[BlackElo "2228"]
[Annotator "TA"]
[PlyCount "104"]
[EventDate "2024.04.12"]
[EventType "swiss"]
[EventCountry "BRA"]
[SourceTitle "playchess.com"]
[Source "ChessBase"]
[SourceQuality "1"]
[TimeControl "5400+30"]

{[%evp 14,104,0,0,0,0,0,0,0,0,57,60,47,63,88,39,77,15,10,8,24,11,12,0,0,0,0,0,0,0,0,0,0,0,0,-7,0,-39,-8,-8,-8,-6,-8,-9,0,-17,0,0,0,0,0,0,0,0,0,0,0,0,0,0,0,-8,-9,-29964,-29961,-29966,-29967,-29965,-29968,-29969,-29972,-29972,-29972,-29972,-29973,-29972,-29973,-29974,-29974,-29974,-29975,-29975,-29976,-29977,-29978,-29978,-29979,-29979,-29980,-29980,-29981,-29981,-29982]} 1. d4 {[%emt 0:00:06]} d5 {[%emt 0:14:48]} 2. c4 {[%emt 0:00:09]} e6 {[%emt 0:00:07]} 3. Nf3 {[%emt 0:00:27]} Nf6 {[%emt 0:00:13]} 4. g3 {[%emt 0:00:27]} dxc4 {[%emt 0:03:03]} 5. Bg2 {[%emt 0:00:58]} c5 {[%emt 0:01:49]} 6. O-O {[%emt 0:00:32]} Nc6 {[%emt 0:00:04]} 7. Na3 {[%emt 0:01:05]} cxd4 {[%emt 0:02:21]} 8. Nxc4 {[%emt 0:00:13]} Bc5 {[%emt 0:01:01]} 9. a3 {[%emt 0:00:44]} a5 {[%emt 0:02:25]} 10. b3 {[%emt 0:00:48]} O-O {[%emt 0:04:40] The position is equal.} 11. Bb2 $1 {[%emt 0:00:22]} e5 {[%emt 0:10:11]} 12. Ncxe5 {[%emt 0:10:20]} Nxe5 {[%emt 0:04:34]} 13. Nxe5 {[%emt 0:00:07][%cal Ob3b4]} Be6 {[%emt 0:07:39]} 14. Nd3 {[%emt 0:17:50]} (14. Bxb7 Rb8 15. Bg2 Bxb3 $11) (14. b4 $16 axb4 15. axb4 (15. Bxb7 $2 bxa3 16. Bxa8 axb2 $19) 15... Bxb4 16. Rxa8 (16. Qxd4 Qxd4 17. Bxd4 Rxa1 $14) (16. Bxd4 Qe7 $14) (16. Bxb7 $2 Rxa1 17. Qxa1 Qc7 $19) 16... Qxa8 17. Qxd4 (17. Bxd4 Rd8 $11)) 14... Bb6 {[%emt 0:14:27]} 15. Nf4 {[%emt 0:07:14]} ({White should play} 15. Bxb7 $16 Rb8 16. Bf3) 15... Qd7 $11 {[%emt 0:01:08]} 16. Nxe6 {[%emt 0:06:23]} fxe6 {[%emt 0:00:04]} 17. Qd3 {[%emt 0:01:16]} e5 {[%emt 0:00:40]} 18. Rac1 {[%emt 0:13:54]} Kh8 {[%emt 0:01:20]} 19. a4 {[%emt 0:02:07]} Rad8 {[%emt 0:02:20]} 20. Ba3 {[%emt 0:06:11] A strong pair of Bishops.} Rfe8 {[%emt 0:00:56]} 21. Be4 {[%emt 0:03:33]} Nxe4 {[%emt 0:01:32]} 22. Qxe4 {[%emt 0:00:04]} Qd5 {[%emt 0:00:14] Wards off Bc5} 23. Qxd5 {[%emt 0:07:34]} Rxd5 {[%emt 0:00:04]} 24. Kg2 {[%emt 0:00:08]} e4 {[%emt 0:01:57]} 25. f3 {[%emt 0:09:06]} exf3+ {[%emt 0:03:22]} 26. Rxf3 {[%emt 0:00:05]} (26. exf3 d3 27. Rfe1 Rxe1 (27... Be3 $2 28. Rxe3 Rb8 29. Rd1 $18) 28. Rxe1 h6) 26... Rxe2+ {[%emt 0:01:16]} 27. Kf1 {[%emt 0:00:03][%cal Rf3f8] [#]} Re8 {[%emt 0:00:11]} ({Worse is} 27... Rxh2 28. Rf8#) 28. Re1 {[%emt 0:00:40] Dodges d3} Red8 {[%emt 0:03:14]} (28... Rxe1+ 29. Kxe1 g6 30. Rf7 $11) 29. Ke2 {[%emt 0:02:03]} Re5+ {[%emt 0:06:08]} 30. Kd2 {[%emt 0:00:12]} Re3 {[%emt 0:01:22]} 31. Be7 {[%emt 0:05:13]} Re8 {[%emt 0:04:02]} ({But not} 31... Rxf3 $6 32. Bxd8 Rf2+ 33. Kc1 $14) 32. Rexe3 {[%emt 0:00:08]} dxe3+ {[%emt 0:00:05][%mdl 4096] Endgame. KRB-KRB} 33. Ke2 {[%emt 0:00:03]} h6 {[%emt 0:01:37]} ({Inferior is} 33... Rxe7 34. Rf8#) 34. Rf8+ {[%emt 0:03:28]} Rxf8 {[%emt 0:00:11]} 35. Bxf8 {[%emt 0:00:02] KB-KB} Kh7 {[%emt 0:00:41]} 36. Ba3 {[%emt 0:02:46]} Kg6 {[%emt 0:01:08]} 37. Bc1 {[%emt 0:00:10]} Kf5 {[%emt 0:01:32] Threatens to win with ...Kg4.} 38. Bxe3 $2 {[%emt 0:01:41][%mdl 8192] Now White is beyond hope.} (38. Bb2 $11) 38... Bxe3 {[%emt 0:00:32] Black mates.} 39. Kxe3 {[%emt 0:00:02] [#] KP-KP} Kg4 $1 {[%emt 0:01:40]} 40. Kf2 {[%emt 0:00:05]} Kh3 {[%emt 0:00:43]} 41. Kg1 {[%emt 0:00:01]} h5 {[%emt 0:01:25]} 42. Kh1 {[%emt 0:00:06]} h4 {[%emt 0:00:25]} 43. gxh4 {[%emt 0:00:08]} Kxh4 {[%emt 0:00:02] K3P-K3P} 44. Kg2 {[%emt 0:01:03]} Kg4 {[%emt 0:00:17]} 45. h3+ {[%emt 0:00:30]} Kf4 {[%emt 0:00:06]} 46. Kf2 {[%emt 0:00:04]} b6 {[%emt 0:00:55]} 47. Kg2 {[%emt 0:01:16]} Ke3 {[%emt 0:00:05]} 48. Kg3 {[%emt 0:00:04]} Kd3 {[%emt 0:00:03]} 49. Kg4 {[%emt 0:00:03]} Kc3 {[%emt 0:00:04]} 50. Kg5 {[%emt 0:00:04]} Kxb3 {[%emt 0:00:08]} 51. Kg6 {[%emt 0:00:05]} Kxa4 {[%emt 0:00:07]} 52. Kxg7 {[%emt 0:00:05]} b5 {[%emt 0:00:47] Weighted Error Value: White=0.16 (very precise) /Black=0.06 (flawless) .  Loses game:     	White=1     	---        Mistake:       	White=2     	Black=1      Inaccurate:     	White=1     	Black=2      OK:         	White=13    	Black=13     Best:        	White=2     	Black=1      Strong:       	White=1     	---} 0-1

[Event "3rd Rio Open 2024"]
[Site "Rio de Janeiro"]
[Date "2024.04.25"]
[Round "5.4"]
[White "Labussiere, Yago"]
[Black "Rangel, Daniel"]
[Result "1/2-1/2"]
[ECO "D35"]
[WhiteElo "2184"]
[BlackElo "2160"]
[Annotator "TA"]
[PlyCount "116"]
[EventDate "2024.04.12"]
[EventType "swiss"]
[EventCountry "BRA"]
[SourceTitle "playchess.com"]
[Source "ChessBase"]
[SourceQuality "1"]
[TimeControl "5400+30"]

{[%evp 19,116,25,26,13,19,13,35,8,30,10,31,22,43,48,25,37,93,29,29,29,77,88,76,80,81,78,87,85,91,95,94,93,67,66,126,120,110,93,105,88,119,87,128,106,100,106,163,158,206,205,322,283,280,289,280,272,259,172,191,122,904,893,783,758,29937,5734,6399,2422,6195,0,5727,0,1216,215,215,215,211,208,210,0,167,0,157,14,14,14,14,14,14,14,30,0,0,0,0,0,0,0,0]} 1. Nf3 {[%emt 0:00:22]} Nf6 {[%emt 0:04:39]} 2. c4 {[%emt 0:00:25]} e6 {[%emt 0:00:22]} 3. Nc3 {[%emt 0:00:18]} d5 {[%emt 0:00:13]} 4. d4 {[%emt 0:00:28]} Be7 {[%emt 0:01:13]} 5. cxd5 {[%emt 0:00:15]} exd5 {[%emt 0:00:05]} 6. Bf4 {[%emt 0:00:18]} O-O {[%emt 0:00:50]} 7. e3 {[%emt 0:00:29]} c6 {[%emt 0:01:10]} 8. Bd3 {[%emt 0:05:17]} Re8 {[%emt 0:01:24] D35: Queen's Gambit Declined: Exchange Variation.} 9. h3 {[%emt 0:00:16]} Bd6 {[%emt 0:02:14]} 10. Bxd6 {[%emt 0:04:28]} Qxd6 {[%emt 0:00:02]} 11. Qc2 {[%emt 0:01:25]} Nbd7 {[%emt 0:00:40]} 12. O-O {[%emt 0:00:58]} g6 {[%emt 0:01:17]} 13. Rab1 $146 {[%emt 0:00:20]} ({Predecessor:} 13. Rfe1 Kg7 14. Rab1 a5 15. Na4 Ne4 16. Bxe4 dxe4 17. Nd2 f5 18. Qc3 Qb4 19. Qc2 {1-0 Haydon,D (2294)-Reimanis,R (2421) English Online Blitz Gp2 2020 (10)}) 13... a5 {[%emt 0:02:31]} 14. a3 {[%emt 0:08:45]} Kg7 {[%emt 0:03:59]} 15. Rfc1 {[%emt 0:02:45]} Re7 {[%emt 0:09:34]} 16. Na4 {[%emt 0:04:49]} b5 {[%emt 0:03:25]} 17. Nc5 {[%emt 0:01:14]} (17. Qxc6 $2 {perishes.} Qxc6 18. Rxc6 bxa4 $19) 17... Nxc5 {[%emt 0:01:14]} (17... a4 $14) 18. dxc5 {[%emt 0:12:30]} (18. Qxc5 $16 Qxc5 19. Rxc5) 18... Qd8 $11 {[%emt 0:05:13]} 19. Qc3 {[%emt 0:02:27]} Rb7 {[%emt 0:09:14]} (19... Re8 $11) 20. b4 $16 {[%emt 0:06:50]} axb4 {[%emt 0:02:00]} 21. axb4 {[%emt 0:00:16]} Rba7 {[%emt 0:11:48]} 22. Ra1 {[%emt 0:01:08]} Kg8 {[%emt 0:12:31]} 23. Nd4 {[%emt 0:04:18]} Bd7 {[%emt 0:01:34]} 24. Rxa7 {[%emt 0:04:16]} Rxa7 {[%emt 0:00:51]} 25. Ra1 {[%emt 0:00:42]} Rxa1+ {[%emt 0:02:48]} 26. Qxa1 {[%emt 0:00:01]} Ne8 {[%emt 0:03:17]} (26... Ne4 $14) 27. Qa6 $1 $16 {[%emt 0:05:54]} Qc7 {[%emt 0:00:23]} 28. f4 {[%emt 0:06:09]} Kf8 {[%emt 0:03:46]} 29. Kf2 {[%emt 0:05:40]} Ke7 {[%emt 0:00:42]} 30. Be2 {[%emt 0:09:38]} Ng7 {[%emt 0:02:11]} 31. Qa1 {[%emt 0:06:13]} Ne6 {[%emt 0:03:02]} 32. Nf3 $1 {[%emt 0:02:57]} h5 {[%emt 0:03:33]} (32... f6 $16) 33. g4 $18 {[%emt 0:01:04]} hxg4 {[%emt 0:00:17]} (33... f6 $16) 34. hxg4 $18 {[%emt 0:00:02]} Nf8 {[%emt 0:01:28]} (34... d4 $142 35. Nxd4 Nxd4 36. Qxd4 Be6) 35. g5 {[%emt 0:01:43]} Ke8 {[%emt 0:05:23]} 36. Qf6 {[%emt 0:01:55]} Qd8 {[%emt 0:00:27]} 37. Qh8 {[%emt 0:00:50]} Qe7 {[%emt 0:00:13]} 38. Ne5 {[%emt 0:00:12]} Kd8 {[%emt 0:00:45]} 39. Bg4 {[%emt 0:01:36]} (39. Qg7 $18 Ke8 40. Bf3) 39... Kc7 $2 {[%emt 0:00:11][%mdl 8192]} (39... Be8 $16 40. Qg7 Kc7) 40. Nxd7 $18 {[%emt 0:00:43]} Nxd7 {[%emt 0:00:01]} 41. Qa8 {[%emt 0:00:11]} Qd8 {[%emt 0:01:35]} 42. Qa7+ {[%emt 0:00:13]} (42. Qa5+ $142 Kc8 43. Qa8+ Kc7 44. Qa7+ Kc8 45. Ke2 Qe7 46. Qb6 f5 47. gxf6 (47. Qxc6+ Kd8 $18) 47... Qxf6 48. Qa6+ Kd8 49. Qa8+ Ke7 50. Qb7 Qb2+ 51. Kf3) 42... Kc8 $18 {[%emt 0:00:01]} 43. Qa6+ {[%emt 0:00:56]} (43. Kg1 $142 Qe7 44. Kf2) 43... Kc7 $18 {[%emt 0:00:06]} 44. Qa7+ {[%emt 0:00:05]} Kc8 {[%emt 0:00:01]} 45. Qa6+ {[%emt 0:01:04]} (45. Kg2 $142 Qe7 46. Kf2) 45... Kc7 $18 {[%emt 0:00:01]} 46. Kf3 $2 {[%emt 0:00:24]} (46. Qa5+ Kc8 47. Qa7) 46... Qc8 $18 {[%emt 0:03:07] [#]} 47. Qa7+ $1 {[%emt 0:00:39]} Kd8 {[%emt 0:00:01] [#]} 48. Qa1 $1 {[%emt 0:00:29]} Kc7 {[%emt 0:00:52]} 49. Qa7+ {[%emt 0:00:25]} Kd8 {[%emt 0:00:01]} 50. Qa1 {[%emt 0:00:02]} Kc7 $1 {[%emt 0:00:06]} 51. Qa5+ {[%emt 0:00:36]} ({Better is} 51. e4 $16 dxe4+ 52. Kg3) 51... Kb7 $11 {[%emt 0:00:50]} 52. Kf2 {[%emt 0:00:54]} Qc7 {[%emt 0:00:51]} 53. Qa1 {[%emt 0:00:23]} Nb8 {[%emt 0:00:51]} 54. Qa3 {[%emt 0:00:39]} Na6 {[%emt 0:00:55]} 55. Bf3 {[%emt 0:00:32]} Qd7 {[%emt 0:00:58]} 56. Qa5 {[%emt 0:00:09]} Qc7 {[%emt 0:00:08]} 57. Qa3 {[%emt 0:00:10]} Qd7 {[%emt 0:00:06]} 58. Qa5 {[%emt 0:00:42]} Qc7 {[%emt 0:00:14]} 1/2-1/2

[Event "3rd Rio Open 2024"]
[Site "Rio de Janeiro"]
[Date "2024.04.25"]
[Round "5.5"]
[White "De Siqueira, Luigy Lira"]
[Black "Terao, Juliana Sayumi"]
[Result "1/2-1/2"]
[ECO "C47"]
[WhiteElo "2274"]
[BlackElo "2179"]
[Annotator "TA"]
[PlyCount "137"]
[EventDate "2024.04.12"]
[EventType "swiss"]
[EventCountry "BRA"]
[SourceTitle "playchess.com"]
[Source "ChessBase"]
[SourceQuality "1"]
[TimeControl "5400+30"]

{[%evp 14,137,7,0,17,-11,37,20,12,17,31,0,1,0,0,0,0,0,0,6,15,14,11,6,0,0,25,12,25,12,13,5,65,60,55,58,63,76,65,59,129,127,125,121,130,131,144,136,132,134,126,135,127,125,127,89,86,86,112,101,150,150,152,152,175,178,161,164,188,46,54,30,41,33,116,120,138,131,115,25,26,0,0,0,225,164,168,0,238,231,244,228,228,228,242,233,252,241,233,233,597,550,533,228,228,209,221,183,183,99,102,71,72,71,71,62,66,67,64,30,83,54,54,-8,-8,-8]} 1. e4 {[%emt 0:15:04]} e5 {[%emt 0:00:08]} 2. Nf3 {[%emt 0:01:31]} Nc6 {[%emt 0:00:07]} 3. d4 {[%emt 0:00:35]} exd4 {[%emt 0:00:08]} 4. Nxd4 {[%emt 0:00:05]} Nf6 {[%emt 0:00:07]} 5. Nc3 {[%emt 0:00:49]} Bb4 {[%emt 0:00:10]} 6. Nxc6 {[%emt 0:00:14]} bxc6 {[%emt 0:00:06]} 7. Bd3 {[%emt 0:00:06]} d5 {[%emt 0:00:25]} 8. exd5 {[%emt 0:00:09]} O-O {[%emt 0:00:14]} 9. O-O {[%emt 0:00:50]} Bg4 {[%emt 0:00:46]} (9... cxd5 $11 10. h3 h6) 10. f3 $14 {[%emt 0:00:30]} Bh5 {[%emt 0:00:07]} 11. Bg5 {[%emt 0:03:38]} Qd6 {[%emt 0:02:47]} 12. Kh1 {[%emt 0:14:17]} (12. Qe1 {keeps more tension.} cxd5 13. Qh4 Bg6 14. Bxf6 gxf6 15. Rad1) 12... Bxc3 {[%emt 0:01:58]} 13. bxc3 {[%emt 0:02:02]} cxd5 {[%emt 0:00:19]} 14. Qd2 {[%emt 0:02:37]} Bg6 {[%emt 0:06:46]} 15. Rfd1 {[%emt 0:09:23]} Rfe8 {[%emt 0:03:06]} 16. c4 {[%emt 0:06:30]} d4 {[%emt 0:29:27]} 17. Bf4 {[%emt 0:03:07][%cal Bg5f4,Bf4g3,Bg3f2,Bf2d4,Bd4c3,Bc3d2][%mdl 32]} Qc5 {[%emt 0:01:35]} 18. Rab1 {[%emt 0:01:51]} c6 {[%emt 0:00:23] Repels Rb5} 19. Bg3 {[%emt 0:01:16]} Rad8 {[%emt 0:03:17]} 20. Bf2 {[%emt 0:01:45]} Qa3 {[%emt 0:01:04]} (20... Bxd3 {simplifies} 21. cxd3 h6 22. Re1 Rxe1+ 23. Rxe1 Qa3) 21. Bxg6 {[%emt 0:07:36]} hxg6 {[%emt 0:00:07]} 22. Bxd4 {[%emt 0:00:35]} c5 {[%emt 0:14:41]} (22... Rd7 $11) 23. Qc3 {[%emt 0:00:31]} Qxc3 {[%emt 0:00:22]} 24. Bxc3 {[%emt 0:00:07]} Rxd1+ {[%emt 0:01:24]} 25. Rxd1 {[%emt 0:00:07][%mdl 4096] Endgame. KRB-KRN} Re2 {[%emt 0:00:30]} 26. Rd8+ {[%emt 0:00:51]} Ne8 {[%emt 0:01:24]} (26... Kh7 $14) 27. Kg1 {[%emt 0:04:54]} Kf8 {[%emt 0:00:08]} 28. Bd2 {[%emt 0:00:27]} Ke7 {[%emt 0:00:38]} 29. Rd3 {[%emt 0:00:12]} Nf6 {[%emt 0:06:01]} 30. Kf1 {[%emt 0:00:41]} Re6 {[%emt 0:00:07]} 31. Ra3 {[%emt 0:01:59] Dodges Ra6} a6 {[%emt 0:00:06]} 32. Rb3 {[%emt 0:01:27]} Nd7 {[%emt 0:00:20]} 33. Be3 {[%emt 0:03:19]} f6 {[%emt 0:03:17][%cal Bf7f6,Bf6f5,Bf5f4][%mdl 32]} 34. Ke2 {[%emt 0:01:41]} g5 {[%emt 0:00:55]} 35. Rb7 {[%emt 0:00:35]} Rc6 {[%emt 0:01:01]} 36. Bf2 {[%emt 0:00:49] White has more active pieces.} Ke6 {[%emt 0:00:37]} (36... Kd8 $142 37. Ra7 Re6+ 38. Kd3 f5) 37. Kd2 $16 {[%emt 0:01:11]} g6 {[%emt 0:02:08]} 38. Kc3 {[%emt 0:00:34]} f5 {[%emt 0:00:52]} 39. Be3 {[%emt 0:02:24]} f4 {[%emt 0:00:36]} 40. Bc1 {[%emt 0:00:02]} Rd6 {[%emt 0:05:32]} 41. Rc7 {[%emt 0:03:29]} (41. Ra7 $1 $18) 41... Rd1 $14 {[%emt 0:03:31]} 42. Ba3 {[%emt 0:00:01]} Rg1 {[%emt 0:01:49]} 43. Bxc5 {[%emt 0:00:07]} Rxg2 {[%emt 0:00:12]} (43... Nxc5 $14 44. Rxc5 Rxg2) 44. Rc6+ $16 {[%emt 0:00:09]} Kf7 {[%emt 0:01:15] [#]} 45. Bd4 $1 {[%emt 0:00:15] Strongly threatening c5.} g4 {[%emt 0:00:31] [#]} 46. fxg4 {[%emt 0:02:05]} (46. Rxa6 gxf3 47. Kd3 Re2 $15 (47... Rxh2 48. Rd6 $11)) (46. Rd6 $1 $16 {[%cal Rd6d7]} Ke7 47. Rxg6 gxf3 48. Rxg2 fxg2 49. Kd3) 46... f3 $1 $11 {[%emt 0:00:22]} 47. Rd6 {[%emt 0:00:08]} Ke7 {[%emt 0:00:11]} 48. Rxg6 {[%emt 0:00:46] Black must now prevent Rg7+.} Rxh2 $2 {[%emt 0:01:39]} (48... f2 $11 {and Black has nothing to worry.} 49. Bxf2 (49. Rg7+ $2 Kf8 $19) 49... Rxf2) 49. Rg7+ {[%emt 0:02:25]} ({Not} 49. Rxa6 f2 50. Bxf2 Rxf2 $17) 49... Ke6 {[%emt 0:00:17]} 50. Rg6+ {[%emt 0:00:05]} (50. Rg5 $142) 50... Ke7 $1 $18 {[%emt 0:00:05]} 51. Rg5 {[%emt 0:00:11]} ({Weaker is} 51. Rxa6 f2 52. Bxf2 Rxf2 $17) 51... Rg2 {[%emt 0:01:27]} 52. Rf5 {[%emt 0:00:47]} Rxg4 {[%emt 0:00:11]} 53. Rxf3 {[%emt 0:00:04]} Kd6 {[%emt 0:00:26]} 54. Rh3 {[%emt 0:01:59] Hoping for Rh6+.} Rg6 {[%emt 0:03:22]} 55. Rh5 {[%emt 0:01:17]} Kc6 {[%emt 0:00:23]} 56. a4 {[%emt 0:00:29]} Rg2 $2 {[%emt 0:01:35]} (56... Nf8 {is tougher.} 57. Rc5+ Kb7) 57. Rh6+ {[%emt 0:00:09]} Kb7 {[%emt 0:00:06]} 58. Rd6 {[%emt 0:00:07]} (58. c5 $142) 58... Nb8 {[%emt 0:00:09]} 59. Rb6+ {[%emt 0:01:00]} Kc7 {[%emt 0:00:06]} 60. Re6 {[%emt 0:01:49] Be5+ is the strong threat.} Nc6 {[%emt 0:00:38][%cal Og2c2]} 61. Be5+ {[%emt 0:01:20]} ({Better is} 61. Bc5 $18) 61... Kb7 $16 {[%emt 0:00:32]} 62. Bh8 {[%emt 0:01:14]} Rg3+ {[%emt 0:01:10]} 63. Kb2 {[%emt 0:00:01]} Rg4 {[%emt 0:00:15] Inhibits Re4.} 64. Kb3 {[%emt 0:00:27]} Na5+ {[%emt 0:00:55]} 65. Kb4 $1 {[%emt 0:00:02]} Nxc4 {[%emt 0:00:15]} 66. Kc5 {[%emt 0:00:09] Inhibits Nb6.} Na5 {[%emt 0:01:14]} (66... Na3 $1 $11 {remains equal.}) 67. Re7+ {[%emt 0:00:06]} Kc8 {[%emt 0:00:13]} 68. Bd4 {[%emt 0:01:43] [#]} (68. Kb6 $14 Nc4+ 69. Kxa6) 68... Rxd4 $1 $11 {[%emt 0:01:12]} 69. Kxd4 {[%emt 0:06:15] White really could win this.   Weighted Error Value: White=0.22 (precise) /Black=0.21 (precise) .  Loses game:     	---       	Black=1      Mistake:       	White=6     	Black=7      Inaccurate:     	White=6     	Black=1      OK:         	White=17    	Black=24     Best:        	White=3     	Black=9      Strong:       	White=2     	Black=2      Brilliant:      	---       	Black=1} (69. Re8+ Kd7) 1/2-1/2

[Event "3rd Rio Open 2024"]
[Site "Rio de Janeiro"]
[Date "2024.04.25"]
[Round "5.6"]
[White "Becker, Rogerio Sperb"]
[Black "Hoffman, Alejandro"]
[Result "0-1"]
[ECO "E11"]
[WhiteElo "2054"]
[BlackElo "2379"]
[Annotator "TA"]
[PlyCount "74"]
[EventDate "2024.04.12"]
[EventType "swiss"]
[EventCountry "BRA"]
[SourceTitle "playchess.com"]
[Source "ChessBase"]
[SourceQuality "1"]
[TimeControl "5400+30"]

{[%evp 14,74,0,-18,-18,-14,-16,-26,-21,-37,-8,-14,-17,-20,-4,-12,0,-31,-31,-40,-40,-47,-39,-33,-28,-32,-14,-159,-85,-202,-224,-218,-175,-186,-111,-115,-112,-98,-101,-150,-149,-144,-115,-160,-125,-129,-56,-585,-100,-106,-42,-6,-22,-576,-520,-29988,-29989,-29989,-29974,-29992,-29993,-29993,-29994]} 1. c4 {[%emt 0:02:00]} e6 {[%emt 0:00:14]} 2. d4 {[%emt 0:00:16]} Nf6 {[%emt 0:00:09]} 3. Nf3 {[%emt 0:00:06]} Bb4+ {[%emt 0:01:00]} 4. Bd2 {[%emt 0:00:10]} Qe7 {[%emt 0:00:42]} 5. Qc2 {[%emt 0:01:23]} Bxd2+ {[%emt 0:03:49]} 6. Nbxd2 {[%emt 0:00:40]} d6 {[%emt 0:00:20]} 7. e4 {[%emt 0:05:36]} e5 {[%emt 0:00:09]} 8. d5 {[%emt 0:01:14]} O-O {[%emt 0:00:20]} 9. Be2 {[%emt 0:00:14]} a5 {[%emt 0:00:48]} 10. O-O {[%emt 0:00:34][%cal Oc4c5]} Na6 {[%emt 0:01:48] Black has an edge.} 11. b3 {[%emt 0:07:52]} Bd7 {[%emt 0:01:23]} 12. a3 {[%emt 0:00:48]} c6 {[%emt 0:00:32]} 13. Rac1 {[%emt 0:06:12]} Rfc8 {[%emt 0:08:13]} 14. Qb1 {[%emt 0:01:40]} Qd8 {[%emt 0:00:56]} 15. b4 {[%emt 0:13:05]} axb4 {[%emt 0:00:25]} 16. axb4 {[%emt 0:00:06]} c5 {[%emt 0:00:47]} 17. b5 {[%emt 0:04:36]} Nb4 {[%emt 0:00:08]} 18. Qb3 {[%emt 0:00:33]} Qa5 {[%emt 0:00:53]} 19. Qe3 {[%emt 0:00:43]} Qa2 {[%emt 0:03:40]} 20. Qg5 {[%emt 0:10:53]} (20. Bd1 $11 {keeps the balance.}) 20... h6 {[%emt 0:02:46]} (20... Ra3 $142 {Hoping for ...h6.} 21. Rfd1 Rf8) 21. Qh4 {[%emt 0:00:14]} (21. Qe3 $17 {is the only way for White.}) 21... Bg4 $1 $19 {[%emt 0:01:23] Threatens to win with ...Bxf3.} 22. Rfd1 {[%emt 0:01:59]} Bxf3 {[%emt 0:01:09]} 23. Bxf3 {[%emt 0:00:09]} Nc2 {[%emt 0:15:00]} (23... Ra3 $19 24. Nf1 Nd3) 24. Nf1 {[%emt 0:02:27]} Nd4 {[%emt 0:00:35]} (24... Qxc4 25. Rd2 $16 (25. Ne3 Nxe3 26. Rxc4 Nxd1 $17)) 25. Ne3 {[%emt 0:01:22]} Ra3 {[%emt 0:04:04]} 26. h3 {[%emt 0:01:41]} ({White should try} 26. Kh1) 26... Rca8 $17 {[%emt 0:52:17]} 27. Re1 {[%emt 0:09:50]} Rb3 {[%emt 0:00:30]} 28. Rf1 {[%emt 0:28:07]} Raa3 {[%emt 0:00:30]} 29. Kh1 {[%emt 0:00:30]} Rb2 {[%emt 0:00:30]} (29... Kh7 $17 {...Rb2 would now be deadly.} 30. Rce1 Rb2) 30. Rce1 $2 {[%emt 0:00:30][%mdl 8192] [#]} (30. Ng4 $1 $15 Nxg4 (30... Nxf3 31. Nxf6+ gxf6 32. gxf3 $11) 31. Bxg4) 30... Qb3 $2 {[%emt 0:00:30]} (30... Rxe3 $1 $19 {and Black stays clearly on top.} 31. Rxe3 Qxc4) 31. Bd1 {[%emt 0:00:30]} Qd3 $36 {[%emt 0:00:30][%mdl 2048] Black fights for an advantage. Black is much more active.} (31... Qc3 $17 {Strongly threatening ...Raa2.} 32. Ng4 Nxg4 (32... Qxc4 33. Nxf6+ gxf6 34. Bh5 $18) 33. Bxg4 Kh7 (33... Qxc4 34. Qd8+ Kh7 35. Qxd6 $14) (33... Ra8 34. Qe7 $15)) 32. Ng4 $15 {[%emt 0:00:30]} Nxe4 {[%emt 0:00:30][%cal Oe4d2] aiming for ...Nd2!} 33. Kg1 $2 {[%emt 0:00:30][%mdl 8192] [#]} (33. Qd8+ $1 $11 {and White is okay.} Kh7 34. Qd7) 33... Nd2 $1 $19 {[%emt 0:00:30] Excellent horsemanship.} 34. Re3 {[%emt 0:00:30]} (34. Qd8+ $19 Kh7 35. Qxd6 Nxf1 (35... Nxc4 36. Qxc5 Rxb5 37. Qc7 $14) (35... Qxc4 36. Qf8 $16) 36. Qe7) 34... Qxf1+ {[%emt 0:00:00] Black mates.} 35. Kh2 {[%emt 0:00:00]} Rxe3 {[%emt 0:00:00]} ({Not} 35... Nxc4 36. Rxa3 Nxa3 37. Qd8+ Kh7 38. Nf6+ gxf6 39. Qf8 $11) 36. Nxh6+ {[%emt 0:00:00]} gxh6 {[%emt 0:00:00]} 37. Qg4+ {[%emt 0:00:00]} Kh8 {[%emt 0:02:00] Weighted Error Value: White=0.65/Black=0.45.  Loses game:     	White=2     	---        Missed win:     	---       	Black=1      Mistake:       	White=4     	Black=4      Inaccurate:     	White=2     	Black=1      OK:         	White=6     	Black=11     Best:        	White=3     	Black=1      Strong:       	---       	Black=1} 0-1